fUST/lending_fUST_20260123
["ID","MTS","AMOUNT","RATE_DAILY","PERIOD"]
[403054627,1769109039922,-500.0,0.00024677,2]
[403054628,1769109039931,-300.91570277,0.00024677,2]
[403054629,1769109039941,-251.11897888,0.00024677,2]
[403054630,1769109039951,-260.4103811,0.00024677,2]
[403054631,1769109039959,-270.0455652,0.00024677,2]
[403054632,1769109039969,-280.03725112,0.00024677,2]
[403054633,1769109039979,-290.39862941,0.00024677,2]
[403054634,1769109039988,-301.1433787,0.00024677,2]
[403054635,1769109039997,-300.0,0.00024709,2]
[403054636,1769109040006,-2308.14016708,0.00024752,2]
[403054637,1769109040015,-5910.61963775,0.00024832,2]
[403054638,1769109040025,-606713.125549,0.000249,2]
[403054639,1769109040034,-151.0,0.000249,7]
[403054640,1769109040043,-276.0,0.00024932,7]
[403054641,1769109040053,-1021.0,0.00025,2]
[403054642,1769109040062,-276.0,0.00025,7]
[403054643,1769109040071,-2000.0,0.00025,7]
[403054644,1769109040080,-578.20924308,0.00025225,2]
[403054645,1769109040090,-7963.55,0.000254,2]
[403054646,1769109040099,-1448.66,0.000254,2]
[403054647,1769109040108,-5910.61963769,0.00025451,2]
[403054648,1769109040118,-1368.0,0.00025464,2]
[403054649,1769109040127,-710.15958117,0.0002548,3]
[403054650,1769109040136,-150.0,0.0002548,2]
[403054651,1769109040146,-150.0,0.0002548,2]
[403054652,1769109040155,-150.0,0.0002548,2]
[403054653,1769109040164,-150.0,0.0002548,2]
[403054654,1769109040174,-730.82808555,0.0002548,3]
[403054655,1769109040183,-500.0,0.0002548,2]
[403054656,1769109040192,-268.58586083,0.0002548,2]
[403054657,1769109040202,-111215.68308668,0.0002548,2]
[403054658,1769109040211,-500.0,0.0002548,2]
[403054659,1769109040220,-150.0,0.0002548,2]
[403054661,1769109040230,-150.0,0.0002548,2]
[403054662,1769109040239,-150.0,0.0002548,2]
[403054663,1769109040248,-150.0,0.0002548,2]
[403054664,1769109040257,-150.0,0.0002548,2]
[403054665,1769109040266,-500.0,0.0002548,2]
[403054666,1769109040276,-150.0,0.0002548,2]
[403054667,1769109040287,-150.0,0.0002548,2]
[403054668,1769109040297,-200.000001,0.0002548,2]
[403054669,1769109040306,-150.0,0.0002548,2]
[403054671,1769109040315,-150.0,0.0002548,2]
[403054672,1769109040325,-150.15040336,0.0002548,2]
[403054674,1769109040334,-2000.0,0.000255,7]
[403054676,1769109040343,-150.0,0.00025617,2]
[403054678,1769109040353,-150.0,0.00025617,2]
[403054681,1769109040363,-150.0,0.00025617,2]
[403054682,1769109040373,-500.0,0.00025617,2]
[403054684,1769109040382,-500.0,0.00025617,2]
[403054686,1769109040391,-150.0,0.00025617,2]
[403054688,1769109040400,-150.0,0.00025617,2]
[403054690,1769109040410,-150.0,0.00025617,2]
[403054692,1769109040418,-150.0,0.00025617,2]
[403054694,1769109040428,-150.0,0.00025617,2]
[403054696,1769109040437,-500.0,0.00025617,2]
[403054698,1769109040446,-150.0,0.00025617,2]
[403054700,1769109040456,-150.0,0.00025617,2]
[403054702,1769109040465,-150.0,0.00025617,2]
[403054704,1769109040474,-150.0,0.00025617,2]
[403054706,1769109040485,-3950.07,0.00025753,6]
[403054709,1769109040495,-150.0,0.00025754,2]
[403054711,1769109040505,-150.0,0.00025754,2]
[403054713,1769109040515,-150.0,0.00025754,2]
[403054714,1769109040525,-500.0,0.00025754,2]
[403054716,1769109040536,-500.0,0.00025754,2]
[403054718,1769109040545,-150.0,0.00025754,2]
[403054720,1769109040555,-150.32930833,0.00025754,2]
[403054722,1769109040564,-150.0,0.00025754,2]
[403054724,1769109040573,-150.0,0.00025754,2]
[403054727,1769109040583,-500.0,0.00025754,2]
[403054729,1769109040592,-200.0,0.00025754,2]
[403054731,1769109040601,-200.0,0.00025754,2]
[403054733,1769109040610,-200.0,0.00025754,2]
[403054735,1769109040619,-200.0,0.00025754,2]
[403054737,1769109040628,-640.41635414,0.00025759,3]
[403054739,1769109040638,-599.60298507,0.00025773,2]
[403054741,1769109040647,-276.0,0.0002589,7]
[403054743,1769109040656,-150.0,0.00025891,2]
[403054745,1769109040666,-150.0,0.00025891,2]
[403054747,1769109040676,-150.0,0.00025891,2]
[403054749,1769109040686,-500.0,0.00025891,2]
[403054751,1769109040704,-500.0,0.00025891,2]
[403054753,1769109040719,-150.0,0.00025891,2]
[403054755,1769109040729,-150.0,0.00025891,2]
[403054757,1769109040738,-150.0,0.00025891,2]
[403054759,1769109040748,-500.0,0.00025891,2]
[403054761,1769109040757,-1816.72,0.000259,14]
[403054763,1769109040767,-314.0068072,0.00025998,2]
[403054765,1769109040778,-1021.0,0.00026,2]
[403054767,1769109040787,-1000.0,0.00026,26]
[403054769,1769109040796,-2000.0,0.00026,7]
[403054770,1769109040805,-592.68319001,0.00026023,2]
[403054772,1769109040814,-1066.82974201,0.00026023,2]
[403054775,1769109040824,-1896.58620802,0.00026023,2]
[403054776,1769109040833,-2963.41595003,0.00026023,2]
[403054779,1769109040846,-710.89851849,0.00026023,2]
[403054781,1769109040855,-1279.61733328,0.00026023,2]
[403054783,1769109040864,-2274.87525916,0.00026023,2]
[403054785,1769109040874,-3554.49259244,0.00026023,2]
[403054787,1769109040883,-5118.46933312,0.00026023,2]
[403054789,1769109040893,-500.0,0.00026028,2]
[403054791,1769109040905,-500.0,0.00026028,2]
[403054793,1769109040914,-200.0,0.00026028,2]
[403054795,1769109040923,-150.0,0.00026028,2]
[403054797,1769109040932,-150.0,0.00026028,2]
[403054799,1769109040941,-5910.61963769,0.00026069,2]
[403054801,1769109040950,-231.0,0.00026165,2]
[403054803,1769109040959,-500.0,0.00026165,2]
[403054805,1769109040969,-250.0,0.00026165,2]
[403054807,1769109040978,-250.0,0.00026165,2]
[403054809,1769109040987,-151.0,0.00026249,5]
[403054811,1769109040996,-2308.14016708,0.00026293,2]
[403054813,1769109041006,-500.0,0.00026302,2]
[403054815,1769109041015,-621.78829552,0.00026321,2]
[403054817,1769109041025,-1480.40358583,0.00026333,3]
[403054819,1769109041035,-2575.27189347,0.00026333,3]
[403054821,1769109041044,-415.58,0.0002634,3]
[403054823,1769109041053,-157.07055921,0.00026352,5]
[403054825,1769109041062,-500.0,0.00026439,2]
[403054827,1769109041071,-2000.0,0.000265,7]
[403054829,1769109041082,-617.97,0.00026512,2]
[403054831,1769109041091,-2520.10163364,0.00026554,2]
[403054833,1769109041101,-500.0,0.00026576,2]
[403054835,1769109041110,-779.0,0.000266,2]
[403054836,1769109041119,-36210.2900517,0.0002664,2]
[403054838,1769109041129,-784.7628901,0.0002664,2]
[403054840,1769109041140,-154.5970137,0.0002664,2]
[403054842,1769109041149,-6428.947461,0.0002664,2]
[403054844,1769109041159,-887.1304388,0.0002664,2]
[403054846,1769109041168,-165.7430902,0.0002664,2]
[403054848,1769109041176,-5910.61963769,0.00026688,2]
[403054850,1769109041185,-500.0,0.00026713,2]
[403054852,1769109041195,-151.0,0.00026823,5]
[403054854,1769109041204,-392.77306658,0.0002685,2]
[403054856,1769109041213,-473.47503097,0.00026869,2]
[403054858,1769109041222,-859.2,0.000269,7]
[403054860,1769109041232,-831.16,0.000269,3]
[403054862,1769109041241,-2000.0,0.00027,7]
[403054864,1769109041251,-13605.06150033,0.00027,2]
[403054866,1769109041260,-232.01514,0.00027,120]
[403054868,1769109041269,-202.25896,0.00027,120]
[403054870,1769109041278,-774.88100171,0.00027,120]
[403054871,1769109041288,-1000.0,0.00027,2]
[403054873,1769109041297,-250.0,0.00027,7]
[403054875,1769109041306,-250.0,0.00027,7]
[403054877,1769109041315,-250.0,0.00027,7]
[403054879,1769109041325,-250.0,0.00027,7]
[403054881,1769109041334,-250.0,0.00027,7]
[403054883,1769109041343,-250.0,0.00027,7]
[403054885,1769109041352,-216.1,0.00027,7]
[403054887,1769109041362,-334.44259278,0.00027,30]
[403054889,1769109041371,-254.308249,0.00027,30]
[403054891,1769109041380,-1021.0,0.00027,2]
[403054893,1769109041389,-1041.66666667,0.00027,7]
[403054895,1769109041398,-1832.73224585,0.00027076,30]
[403054929,1769109041731,-294.664925,0.000249,7]
[403054930,1769109041741,-8644.65636637,0.00027076,30]
[403054933,1769109041753,-7844.79999778,0.00027076,30]
[403054935,1769109041763,-1041.66666667,0.00027076,30]
[403054936,1769109041773,-1104.249745,0.00027076,30]
[403054938,1769109041783,-159.149109,0.00027076,7]
[403054940,1769109041793,-159.149109,0.00027076,7]
[403054942,1769109041802,-159.149109,0.00027076,7]
[403054944,1769109041811,-159.149109,0.00027076,7]
[403054946,1769109041820,-151.0,0.00027076,7]
[403054948,1769109041829,-800.0,0.00027082,2]
[403054949,1769109041838,-466.723933,0.00027082,30]
[403054951,1769109041847,-317.320277,0.00027082,30]
[403054953,1769109041857,-831.16,0.000271,3]
[403054955,1769109041866,-177.153776,0.00027115,30]
[403054957,1769109041875,-800.0,0.00027155,2]
[403054959,1769109041883,-177.88984,0.00027155,30]
[403054961,1769109041893,-800.0,0.00027161,2]
[403054963,1769109041902,-800.0,0.00027166,2]
[403054965,1769109041911,-800.0,0.00027173,2]
[403054966,1769109041920,-800.0,0.00027181,2]
[403054968,1769109041930,-151.0,0.00027181,7]
[403054970,1769109041939,-800.0,0.00027184,2]
[403054972,1769109041949,-1405.886911,0.00027184,30]
[403054974,1769109041958,-749.104964,0.00027185,30]
[403054976,1769109041967,-282.0,0.00027185,7]
[403054978,1769109041977,-800.0,0.00027187,2]
[403054980,1769109041986,-315876.21475521,0.00027197,2]
[403054982,1769109041996,-300.80548,0.00027197,30]
[403054984,1769109042005,-159.149109,0.00027197,7]
[403054986,1769109042014,-159.149109,0.00027197,7]
[403054988,1769109042024,-159.149109,0.00027197,7]
[403054990,1769109042035,-159.149109,0.00027197,7]
[403054991,1769109042044,-151.0,0.00027197,7]
[403054993,1769109042054,-250.0,0.000272,7]
[403054995,1769109042063,-250.0,0.000272,7]
[403054997,1769109042072,-171.755602,0.00027214,30]
[403054999,1769109042082,-800.0,0.0002722,2]
[403055001,1769109042091,-800.0,0.00027235,2]
[403055003,1769109042100,-800.0,0.00027242,2]
[403055005,1769109042110,-800.0,0.00027248,2]
[403055007,1769109042119,-608.77398676,0.00027277,2]
[403055009,1769109042128,-258.72,0.00027279,2]
[403055011,1769109042137,-1063.349574,0.0002728,5]
[403055013,1769109042148,-800.0,0.00027283,2]
[403055015,1769109042157,-800.0,0.00027288,2]
[403055017,1769109042166,-804.136851,0.00027293,30]
[403055018,1769109042175,-200.0,0.000273,24]
[403055020,1769109042185,-6565.966693,0.000273,30]
[403055022,1769109042194,-1448.66,0.000273,2]
[403055024,1769109042203,-630.329335,0.000273,30]
[403055026,1769109042212,-1000.0,0.000273,5]
[403055028,1769109042222,-800.0,0.00027304,2]
[403055030,1769109042231,-800.0,0.00027325,2]
[403055032,1769109042241,-800.0,0.00027327,2]
[403055034,1769109042250,-500.0,0.00027336,10]
[403055036,1769109042259,-500.0,0.00027343,10]
[403055037,1769109042268,-800.0,0.00027362,2]
[403055039,1769109042278,-800.0,0.00027366,2]
[403055041,1769109042288,-309.209,0.00027387,60]
[403055043,1769109042297,-309.209,0.00027387,60]
[403055045,1769109042306,-394.72779922,0.0002739,7]
[403055047,1769109042316,-150.0,0.0002739,2]
[403055049,1769109042325,-20400.50470412,0.0002739,2]
[403055051,1769109042335,-4202.9958685,0.00027397,120]
[403055053,1769109042344,-11235.67,0.00027397,120]
[403055055,1769109042354,-11235.67,0.00027397,120]
[403055057,1769109042363,-11235.67,0.00027397,120]
[403055059,1769109042372,-11235.67,0.00027397,120]
[403055060,1769109042382,-11235.67,0.00027397,120]
[403055062,1769109042392,-11235.67,0.00027397,120]
[403055064,1769109042401,-11235.67,0.00027397,120]
[403055066,1769109042411,-11235.67,0.00027397,120]
[403055068,1769109042420,-11235.797005,0.00027397,120]
[403055070,1769109042430,-500.0,0.00027397,10]
[403055072,1769109042440,-500.0,0.00027397,120]
[403055074,1769109042449,-413.07233626,0.00027397,120]
[403055076,1769109042459,-1179.92,0.00027397,120]
[403055078,1769109042469,-1179.92,0.00027397,120]
[403055080,1769109042478,-1179.92,0.00027397,120]
[403055082,1769109042487,-1179.92,0.00027397,120]
[403055084,1769109042497,-1179.92,0.00027397,120]
[403055086,1769109042507,-1179.92,0.00027397,120]
[403055088,1769109042516,-1179.92,0.00027397,120]
[403055090,1769109042525,-1179.92,0.00027397,120]
[403055091,1769109042535,-1179.92,0.00027397,120]
[403055093,1769109042544,-1179.92,0.00027397,120]
[403055095,1769109042555,-1179.92,0.00027397,120]
[403055097,1769109042564,-1179.92,0.00027397,120]
[403055099,1769109042573,-1179.92,0.00027397,120]
[403055101,1769109042582,-1179.92,0.00027397,120]
[403055103,1769109042592,-1179.92,0.00027397,120]
[403055105,1769109042601,-1179.92,0.00027397,120]
[403055107,1769109042610,-1179.92,0.00027397,120]
[403055109,1769109042619,-1179.92,0.00027397,120]
[403055111,1769109042628,-1179.92,0.00027397,120]
[403055113,1769109042638,-1179.92,0.00027397,120]
[403055115,1769109042647,-1179.92,0.00027397,120]
[403055117,1769109042657,-1179.92,0.00027397,120]
[403055118,1769109042666,-1179.92,0.00027397,120]
[403055120,1769109042676,-1180.12229305,0.00027397,120]
[403055122,1769109042685,-500.0,0.00027397,120]
[403055124,1769109042695,-530.17961935,0.00027397,120]
[403055126,1769109042705,-500.0,0.00027397,120]
[403055128,1769109042716,-500.0,0.00027397,120]
[403055131,1769109042726,-500.0,0.00027397,120]
[403055133,1769109042734,-500.0,0.00027397,120]
[403055135,1769109042744,-500.0,0.00027397,120]
[403055154,1769109042926,-500.0,0.00027397,120]
[403055158,1769109042953,-497.77627645,0.00027397,120]
[403055161,1769109042963,-570.83,0.00027397,120]
[403055164,1769109042972,-570.83,0.00027397,120]
[403055167,1769109042982,-570.83,0.00027397,120]
[403055170,1769109042991,-570.83,0.00027397,120]
[403055172,1769109043000,-570.83,0.00027397,120]
[403055175,1769109043009,-570.83,0.00027397,120]
[403055178,1769109043018,-570.83,0.00027397,120]
[403055181,1769109043030,-570.83,0.00027397,120]
[403055184,1769109043039,-570.83,0.00027397,120]
[403055187,1769109043048,-570.83,0.00027397,120]
[403055189,1769109043058,-570.83,0.00027397,120]
[403055191,1769109043067,-570.83,0.00027397,120]
[403055193,1769109043076,-570.83,0.00027397,120]
[403055195,1769109043086,-570.83,0.00027397,120]
[403055197,1769109043095,-570.83,0.00027397,120]
[403055199,1769109043104,-570.83,0.00027397,120]
[403055201,1769109043114,-570.83,0.00027397,120]
[403055203,1769109043124,-570.83,0.00027397,120]
[403055205,1769109043133,-570.83,0.00027397,120]
[403055207,1769109043143,-570.83,0.00027397,120]
[403055209,1769109043152,-570.83,0.00027397,120]
[403055211,1769109043162,-570.83,0.00027397,120]
[403055213,1769109043171,-570.83,0.00027397,120]
[403055215,1769109043181,-571.06170269,0.00027397,120]
[403055217,1769109043190,-500.0,0.00027397,2]
[403055218,1769109043200,-500.0,0.00027397,2]
[403055220,1769109043209,-229.69418364,0.00027397,2]
[403055222,1769109043218,-562.5,0.00027397,2]
[403055224,1769109043227,-562.5,0.00027397,2]
[403055226,1769109043237,-562.5,0.00027397,2]
[403055228,1769109043246,-562.5,0.00027397,2]
[403055230,1769109043256,-562.5,0.00027397,2]
[403055232,1769109043265,-562.5,0.00027397,2]
[403055234,1769109043276,-562.5,0.00027397,2]
[403055236,1769109043285,-562.5,0.00027397,2]
[403055238,1769109043294,-562.5,0.00027397,2]
[403055240,1769109043304,-562.5,0.00027397,2]
[403055242,1769109043313,-562.5,0.00027397,2]
[403055244,1769109043323,-562.5,0.00027397,2]
[403055246,1769109043332,-562.5,0.00027397,2]
[403055248,1769109043341,-562.5,0.00027397,2]
[403055249,1769109043350,-562.5,0.00027397,2]
[403055251,1769109043360,-562.5,0.00027397,2]
[403055253,1769109043369,-562.5,0.00027397,2]
[403055255,1769109043378,-562.5,0.00027397,2]
[403055257,1769109043387,-562.5,0.00027397,2]
[403055259,1769109043397,-562.5,0.00027397,2]
[403055261,1769109043408,-562.5,0.00027397,2]
[403055263,1769109043417,-562.5,0.00027397,2]
[403055265,1769109043427,-562.5,0.00027397,2]
[403055267,1769109043436,-562.5,0.00027397,2]
[403055269,1769109043446,-500.0,0.00027397,120]
[403055271,1769109043456,-500.0,0.00027397,120]
[403055272,1769109043465,-500.0,0.00027397,120]
[403055273,1769109043475,-500.0,0.00027397,120]
[403055274,1769109043485,-500.0,0.00027397,120]
[403055275,1769109043494,-500.0,0.00027397,120]
[403055276,1769109043503,-500.0,0.00027397,120]
[403055277,1769109043512,-236.00000003,0.00027397,120]
[403055278,1769109043522,-506.03524171,0.00027397,120]
[403055279,1769109043532,-501.71035875,0.00027397,120]
[403055280,1769109043541,-500.0,0.00027397,2]
[403055281,1769109043551,-500.0,0.00027397,2]
[403055282,1769109043560,-500.0,0.00027397,2]
[403055283,1769109043569,-500.0,0.00027397,2]
[403055284,1769109043578,-500.0,0.00027397,2]
[403055285,1769109043589,-503.62812283,0.00027397,2]
[403055286,1769109043598,-500.0,0.00027397,120]
[403055287,1769109043607,-500.0,0.00027397,120]
[403055288,1769109043616,-241.51163867,0.00027397,120]
[403055289,1769109043627,-500.0,0.00027397,120]
[403055290,1769109043636,-500.0,0.00027397,120]
[403055291,1769109043646,-500.0,0.00027397,120]
[403055292,1769109043655,-500.0,0.00027397,120]
[403055293,1769109043664,-500.0,0.00027397,120]
[403055294,1769109043673,-500.0,0.00027397,120]
[403055295,1769109043683,-500.0,0.00027397,120]
[403055296,1769109043692,-500.0,0.00027397,120]
[403055297,1769109043703,-500.0,0.00027397,120]
[403055298,1769109043715,-500.0,0.00027397,120]
[403055299,1769109043724,-500.0,0.00027397,120]
[403055300,1769109043735,-500.0,0.00027397,120]
[403055301,1769109043745,-500.0,0.00027397,120]
[403055302,1769109043754,-500.0,0.00027397,120]
[403055304,1769109043763,-500.0,0.00027397,120]
[403055307,1769109043775,-500.0,0.00027397,120]
[403055309,1769109043784,-500.0,0.00027397,120]
[403055311,1769109043793,-500.0,0.00027397,120]
[403055312,1769109043802,-500.0,0.00027397,120]
[403055314,1769109043811,-598.27537877,0.00027397,120]
[403055316,1769109043821,-153.49640818,0.00027397,120]
[403055318,1769109043830,-500.0,0.00027397,120]
[403055320,1769109043839,-500.0,0.00027397,2]
[403055322,1769109043848,-500.0,0.00027397,2]
[403055324,1769109043858,-500.0,0.00027397,2]
[403055326,1769109043867,-500.0,0.00027397,2]
[403055328,1769109043876,-500.0,0.00027397,2]
[403055331,1769109043886,-500.0,0.00027397,2]
[403055332,1769109043895,-500.0,0.00027397,2]
[403055334,1769109043904,-500.0,0.00027397,2]
[403055336,1769109043914,-500.0,0.00027397,2]
[403055338,1769109043923,-500.0,0.00027397,2]
[403055340,1769109043932,-500.0,0.00027397,2]
[403055342,1769109043942,-500.0,0.00027397,2]
[403055344,1769109043951,-772.19,0.00027397,120]
[403055347,1769109043962,-772.19,0.00027397,120]
[403055349,1769109043971,-772.19,0.00027397,120]
[403055351,1769109043981,-772.19,0.00027397,120]
[403055353,1769109043990,-772.19,0.00027397,120]
[403055354,1769109043999,-772.19,0.00027397,120]
[403055356,1769109044009,-772.19,0.00027397,120]
[403055360,1769109044031,-772.19,0.00027397,120]
[403055362,1769109044042,-772.19,0.00027397,120]
[403055364,1769109044052,-772.19,0.00027397,120]
[403055366,1769109044062,-772.19,0.00027397,120]
[403055368,1769109044072,-772.19,0.00027397,120]
[403055370,1769109044082,-772.19,0.00027397,120]
[403055372,1769109044092,-772.19,0.00027397,120]
[403055374,1769109044102,-772.19,0.00027397,120]
[403055376,1769109044112,-500.0,0.00027397,120]
[403055378,1769109044122,-772.19,0.00027397,120]
[403055380,1769109044132,-500.0,0.00027397,120]
[403055382,1769109044142,-772.19,0.00027397,120]
[403055385,1769109044152,-500.0,0.00027397,120]
[403055387,1769109044162,-772.19,0.00027397,120]
[403055389,1769109044172,-500.0,0.00027397,120]
[403055391,1769109044181,-772.19,0.00027397,120]
[403055393,1769109044191,-500.0,0.00027397,120]
[403055395,1769109044204,-772.19,0.00027397,120]
[403055397,1769109044213,-500.0,0.00027397,120]
[403055399,1769109044223,-217.03075887,0.00027397,120]
[403055401,1769109044233,-500.0,0.00027397,120]
[403055403,1769109044244,-500.0,0.00027397,120]
[403055405,1769109044253,-500.0,0.00027397,120]
[403055407,1769109044263,-500.0,0.00027397,120]
[403055409,1769109044275,-517.43875864,0.00027397,120]
[403055412,1769109044287,-500.0,0.00027397,120]
[403055414,1769109044297,-500.0,0.00027397,120]
[403055416,1769109044307,-500.86928599,0.00027397,120]
[403055418,1769109044316,-181.90280061,0.00027397,120]
[403055420,1769109044327,-500.0,0.00027397,120]
[403055422,1769109044337,-500.0,0.00027397,120]
[403055424,1769109044348,-500.0,0.00027397,120]
[403055426,1769109044358,-500.0,0.00027397,120]
[403055428,1769109044368,-500.0,0.00027397,120]
[403055430,1769109044380,-500.0,0.00027397,120]
[403055432,1769109044391,-500.0,0.00027397,120]
[403055434,1769109044401,-216.61959169,0.00027397,120]
[403055436,1769109044411,-500.0,0.00027397,120]
[403055438,1769109044421,-500.0,0.00027397,120]
[403055440,1769109044431,-500.0,0.00027397,120]
[403055442,1769109044441,-546.5863793,0.00027397,120]
[403055444,1769109044451,-500.0,0.00027397,120]
[403055447,1769109044461,-500.0,0.00027397,120]
[403055449,1769109044471,-167.11277751,0.00027397,120]
[403055451,1769109044482,-426.8582892,0.00027397,120]
[403055453,1769109044493,-500.0,0.00027397,120]
[403055455,1769109044503,-500.0,0.00027397,120]
[403055457,1769109044513,-500.0,0.00027397,120]
[403055459,1769109044524,-500.0,0.00027397,120]
[403055461,1769109044534,-500.0,0.00027397,120]
[403055463,1769109044544,-500.0,0.00027397,120]
[403055465,1769109044555,-389.6943964,0.00027397,120]
[403055467,1769109044567,-157.88128706,0.00027397,120]
[403055469,1769109044577,-500.0,0.00027397,120]
[403055471,1769109044587,-500.0,0.00027397,120]
[403055473,1769109044597,-500.0,0.00027397,120]
[403055474,1769109044606,-500.0,0.00027397,120]
[403055477,1769109044617,-500.0,0.00027397,120]
[403055479,1769109044626,-500.0,0.00027397,120]
[403055481,1769109044635,-500.0,0.00027397,120]
[403055482,1769109044645,-500.0,0.00027397,120]
[403055485,1769109044655,-500.0,0.00027397,120]
[403055487,1769109044664,-500.0,0.00027397,120]
[403055489,1769109044674,-500.0,0.00027397,120]
[403055491,1769109044684,-500.0,0.00027397,120]
[403055493,1769109044694,-500.0,0.00027397,120]
[403055495,1769109044705,-504.61937376,0.00027397,120]
[403055496,1769109044717,-500.0,0.00027397,120]
[403055499,1769109044727,-500.0,0.00027397,120]
[403055500,1769109044736,-500.0,0.00027397,120]
[403055502,1769109044746,-500.0,0.00027397,120]
[403055504,1769109044756,-500.0,0.00027397,120]
[403055506,1769109044766,-546.33413491,0.00027397,120]
[403055508,1769109044777,-269.488881,0.00027397,120]
[403055510,1769109044786,-256.02607044,0.00027397,120]
[403055512,1769109044796,-500.0,0.00027397,120]
[403055514,1769109044805,-500.0,0.00027397,120]
[403055516,1769109044814,-500.0,0.00027397,120]
[403055518,1769109044823,-500.0,0.00027397,120]
[403055520,1769109044833,-500.0,0.00027397,120]
[403055522,1769109044842,-500.0,0.00027397,120]
[403055524,1769109044851,-500.0,0.00027397,120]
[403055526,1769109044861,-500.0,0.00027397,120]
[403055528,1769109044870,-500.0,0.00027397,120]
[403055530,1769109044879,-500.0,0.00027397,120]
[403055532,1769109044889,-500.0,0.00027397,120]
[403055534,1769109044898,-500.0,0.00027397,120]
[403055536,1769109044907,-500.0,0.00027397,120]
[403055538,1769109044916,-500.0,0.00027397,120]
[403055540,1769109044926,-500.0,0.00027397,120]
[403055542,1769109044935,-500.0,0.00027397,120]
[403055544,1769109044945,-500.0,0.00027397,120]
[403055546,1769109044955,-500.0,0.00027397,120]
[403055548,1769109044964,-503.25620946,0.00027397,120]
[403055550,1769109044974,-150.75477136,0.00027397,120]
[403055552,1769109044983,-500.0,0.00027397,120]
[403055554,1769109044993,-500.0,0.00027397,120]
[403055556,1769109045002,-500.0,0.00027397,120]
[403055558,1769109045012,-500.0,0.00027397,120]
[403055560,1769109045023,-500.0,0.00027397,120]
[403055562,1769109045033,-500.0,0.00027397,120]
[403055564,1769109045043,-500.0,0.00027397,120]
[403055566,1769109045052,-500.0,0.00027397,120]
[403055568,1769109045062,-500.0,0.00027397,120]
[403055570,1769109045071,-500.0,0.00027397,120]
[403055572,1769109045081,-500.0,0.00027397,120]
[403055574,1769109045090,-500.0,0.00027397,120]
[403055576,1769109045099,-267.41245432,0.00027397,120]
[403055578,1769109045109,-500.0,0.00027397,120]
[403055580,1769109045118,-479.85677999,0.00027397,120]
[403055581,1769109045127,-500.0,0.00027397,120]
[403055583,1769109045137,-500.0,0.00027397,120]
[403055585,1769109045147,-500.0,0.00027397,120]
[403055587,1769109045157,-500.0,0.00027397,120]
[403055589,1769109045166,-500.0,0.00027397,120]
[403055591,1769109045175,-500.0,0.00027397,120]
[403055594,1769109045186,-500.0,0.00027397,120]
[403055596,1769109045195,-500.0,0.00027397,120]
[403055598,1769109045204,-500.0,0.00027397,120]
[403055600,1769109045214,-218.93667841,0.00027397,120]
[403055602,1769109045224,-500.0,0.00027397,120]
[403055604,1769109045233,-500.0,0.00027397,120]
[403055606,1769109045242,-500.0,0.00027397,120]